[Event "CZE-ch U16 Open 2023"]
[Site "Teplice"]
[Date "2023.03.17"]
[Round "8.1"]
[White "Mametev, Artem"]
[Black "Fizer, Marek"]
[Result "0-1"]
[ECO "B33"]
[WhiteElo "2074"]
[BlackElo "1929"]
[Annotator "TA"]
[PlyCount "74"]
[EventDate "2023.03.09"]
[EventType "swiss"]
[EventCountry "CZE"]
[SourceTitle "playchess.com"]
[Source "ChessBase"]
[SourceQuality "1"]
[TimeControl "40/5400+30:1800+30"]

{[%evp 23,74,8,7,0,10,10,4,10,10,0,0,-4,0,0,30,0,9,-14,0,-18,0,0,0,0,0,-16,-7,-28,-22,-82,20,10,8,23,18,45,59,33,11,-425,-622,-629,-270,-587,-189,-209,-91,-85,-245,-156,-162,-560,-527]} 1. e4 {[%emt 0:00:02]} c5 {[%emt 0:00:07]} 2. Nf3 {[%emt 0:00:03][%cal Bg1f3,Bf3d4,Bd4b5,Bb5a3,Ba3c2][%mdl 32]} Nc6 {[%emt 0:00:22]} 3. d4 {[%emt 0:00:07]} cxd4 {[%emt 0:00:20]} 4. Nxd4 {[%emt 0:00:04]} Nf6 {[%emt 0:00:24]} 5. Nc3 {[%emt 0:00:04]} e5 {[%emt 0:00:16]} 6. Ndb5 {[%emt 0:00:14]} d6 {[%emt 0:00:40]} 7. Bg5 {[%emt 0:00:23]} a6 {[%emt 0:01:16]} 8. Na3 {[%emt 0:02:10]} b5 {[%emt 0:00:37]} 9. Nd5 {[%emt 0:00:06]} Be7 {[%emt 0:00:45]} 10. Bxf6 {[%emt 0:00:06]} Bxf6 {[%emt 0:01:01]} 11. c4 {[%emt 0:00:05]} b4 {[%emt 0:00:51]} 12. Nc2 {[%emt 0:00:09]} a5 {[%emt 0:01:13]} 13. g3 {[%emt 0:00:06] B33: Sicilian: Pelikan and Sveshnikov Variations.} O-O {[%emt 0:01:25]} 14. Bg2 {[%emt 0:00:10]} Bg5 {[%emt 0:01:45] 14...g6 injects fresh life into this line.} 15. O-O {[%emt 0:00:13] The position is equal.} Ne7 {[%emt 0:01:59]} 16. Nce3 {[%emt 0:02:32]} Bxe3 {[%emt 0:02:59]} 17. Nxe3 {[%emt 0:00:17][%cal Oe3f5]} Be6 {[%emt 0:01:29]} 18. Qd3 {[%emt 0:03:17]} Qb6 {[%emt 0:06:06]} 19. b3 {[%emt 0:01:32]} a4 {[%emt 0:05:55]} 20. Rad1 {[%emt 0:00:37]} (20. Nf5 {seems wilder.} Nc6 21. Qxd6 Ra7 22. bxa4 Rd8 23. a5) 20... Rfd8 {[%emt 0:02:35] [#]} 21. Kh1 $146 {[%emt 0:10:09]} ({Predecessor:} 21. Rd2 axb3 22. axb3 Nc6 23. Rfd1 Nd4 24. Nc2 Bg4 25. Re1 Ne6 26. h3 {1-0 Zhapova,Y (2212)-Aleshina,A (1445) Satka Autumn op (Women) 2021 (1)}) 21... axb3 {[%emt 0:08:07]} 22. axb3 {[%emt 0:00:02]} Kh8 {[%emt 0:17:44]} 23. f4 {[%emt 0:03:19]} f6 $1 {[%emt 0:00:57]} 24. f5 {[%emt 0:14:37]} Bf7 {[%emt 0:01:30]} 25. g4 {[%emt 0:00:53]} Nc6 {[%emt 0:02:38]} 26. h4 {[%emt 0:03:07]} (26. Nc2 $11) 26... Nd4 {[%emt 0:02:21] Black is more active.} (26... Qd4 $17) 27. Nc2 $1 $11 {[%emt 0:07:20]} Nxc2 {[%emt 0:04:20]} 28. Qxc2 {[%emt 0:00:02]} Ra3 {[%emt 0:00:38]} 29. Rd3 {[%emt 0:12:17]} Rda8 {[%emt 0:07:09]} 30. Qd2 {[%emt 0:01:48]} R8a6 {[%emt 0:02:01]} 31. Rf2 $2 {[%emt 0:04:35][%mdl 8192] [#]} (31. g5 $11 {and White stays safe.} Ra2 32. Qc1) 31... Bxc4 $1 $19 {[%emt 0:02:42][%mdl 576] Pin, Double Attack} 32. Qc2 {[%emt 0:04:22]} (32. Bf1 Bxd3) 32... Bg8 {[%emt 0:08:14]} (32... Bxd3 $2 {gets mated.} 33. Qc8+) (32... Ra8 $142 33. Rdf3 Bxb3) 33. g5 $2 {[%emt 0:09:44]} (33. Bf1 {is a better chance.}) 33... Qc5 $2 {[%emt 0:07:36]} (33... Rxb3 34. Rxb3 Bxb3 35. Qc8+ Bg8) 34. gxf6 {[%emt 0:02:01]} Qxc2 {[%emt 0:05:05]} (34... gxf6 $19 {has better winning chances.} 35. Bf1 Ra7 36. Qxc5 dxc5) 35. fxg7+ $2 {[%emt 0:00:06]} (35. Rxc2 $17 {was forced.} gxf6 36. Rc8) 35... Kxg7 {[%emt 0:00:07]} 36. Rxc2 {[%emt 0:00:06] [#] Rg3+ is the strong threat.} Bxb3 {[%emt 0:01:48]} 37. Rg3+ $2 {[%emt 0:01:16]} (37. Rc7+ {is tougher.} Bf7 38. Bf1) 37... Kf6 {[%emt 0:01:02] Weighted Error Value: White=0.73/Black=0.53} 0-1

[Event "CZE-ch U16 Open 2023"]
[Site "Teplice"]
[Date "2023.03.17"]
[Round "8.2"]
[White "Paseka, Matyas"]
[Black "Simunek, Jakub Simon"]
[Result "1-0"]
[ECO "C18"]
[WhiteElo "2082"]
[BlackElo "1970"]
[Annotator "TA"]
[PlyCount "91"]
[EventDate "2023.03.09"]
[EventType "swiss"]
[EventCountry "CZE"]
[SourceTitle "playchess.com"]
[Source "ChessBase"]
[SourceQuality "1"]
[TimeControl "40/5400+30:1800+30"]

{[%evp 28,91,25,31,42,39,141,126,162,160,145,123,216,236,284,230,226,196,221,202,219,212,276,273,270,250,242,253,270,258,240,238,369,357,345,329,722,689,1460,1438,1614,1580,1375,1039,976,708,29966,29970,29971,29972,29971,29972,29977,29958,29978,29976,29976,29979,29978,29979,29983,29984,29984,29985,29983,29984]} 1. e4 {[%emt 0:00:03] Edouard,Romain} e6 {[%emt 0:00:08]} 2. d4 {[%emt 0:00:06]} d5 {[%emt 0:00:07]} 3. Nc3 {[%emt 0:00:09]} Bb4 {[%emt 0:00:54]} 4. e5 {[%emt 0:00:08]} c5 {[%emt 0:00:06]} 5. a3 {[%emt 0:00:07]} Bxc3+ {[%emt 0:00:16]} 6. bxc3 {[%emt 0:00:08]} Ne7 {[%emt 0:00:14]} 7. Qg4 {[%emt 0:00:16]} Qc7 {[%emt 0:00:38]} 8. Qxg7 {[%emt 0:00:21]} Rg8 {[%emt 0:00:05]} 9. Qxh7 {[%emt 0:00:09]} cxd4 {[%emt 0:00:23]} 10. Ne2 {[%emt 0:00:24]} dxc3 {[%emt 0:01:40]} 11. f4 {[%emt 0:00:23]} Nbc6 12. Qd3 d4 {[%emt 0:01:42]} 13. Nxd4 {[%emt 0:01:34]} Nxd4 {[%emt 0:00:48]} 14. Qxd4 {[%emt 0:00:08]} Bd7 {[%emt 0:02:15]} 15. Rg1 {[%emt 0:00:23]} Nf5 {[%emt 0:09:13][%cal Be7f5,Bf5h4,Bh4f3][%mdl 32] C18: French: 3 Nc3 Bb4: Main line: 7 h4 and 7 Qg4.} 16. Qf2 {[%emt 0:00:14] [#]} Qb6 $146 {[%emt 0:01:50]} (16... Qc6 $1 $14) ({Predecessor:} 16... Bc6 17. Bd3 O-O-O 18. Qxa7 Nh4 19. Be3 Nxg2+ 20. Rxg2 Rxg2 21. Bb6 Qe7 22. Bxd8 Qxd8 23. O-O-O {½-½ Fier,A (2562)-Edouard,R (2645) Bremen CD Meyer Memorial 2020 (2.2)}) 17. Bd3 {[%emt 0:16:14]} Bc6 {[%emt 0:08:39] White is better.} 18. Qxb6 {[%emt 0:03:25]} axb6 {[%emt 0:00:12]} 19. Kf2 {[%emt 0:00:27]} Ke7 {[%emt 0:13:51]} (19... Rh8 $16) 20. Rb1 $18 {[%emt 0:06:42]} Nh4 {[%emt 0:07:56][%cal Rh4g2]} 21. g4 {[%emt 0:00:42]} Nf3 {[%emt 0:06:35]} 22. Rg3 {[%emt 0:00:11]} Nd2 {[%emt 0:00:24]} 23. Rxb6 {[%emt 0:05:18]} Rh8 {[%emt 0:03:57]} 24. h3 {[%emt 0:00:45]} Rh4 {[%emt 0:00:32]} 25. Ke3 {[%emt 0:14:16]} Rah8 {[%emt 0:09:13]} 26. Bxd2 {[%emt 0:00:20]} cxd2 {[%emt 0:00:10]} 27. Kxd2 {[%emt 0:00:06]} Rxh3 {[%emt 0:00:05]} 28. Rxh3 {[%emt 0:00:10]} Rxh3 {[%emt 0:00:04][%mdl 4096] Endgame KRB-KRB} 29. f5 {[%emt 0:01:57][%cal Bf4f5,Bf5f6][%mdl 32]} Rg3 {[%emt 0:05:46]} (29... exf5 $142 30. gxf5 Rh4) 30. f6+ {[%emt 0:00:19]} Kd7 {[%emt 0:01:20]} 31. Rb4 {[%emt 0:00:24]} Bf3 $2 {[%emt 0:00:48]} (31... b5 32. Bxb5 Bxb5) 32. Rd4+ {[%emt 0:13:15]} Kc8 {[%emt 0:01:50] [#]} 33. Bg6 $1 {[%emt 0:00:30][%mdl 576] Promotion} Bxg4 {[%emt 0:01:27]} (33... Rxg4 34. Rxg4) 34. Bxf7 {[%emt 0:00:23][%cal Od4g4] Threatening mate with Rxg4!} Bf5 {[%emt 0:01:14]} 35. Bh5 {[%emt 0:01:17] Intending f7 and mate.} Rg2+ {[%emt 0:00:11]} 36. Be2 {[%emt 0:00:52] f7 would kill now.} Bg6 {[%emt 0:01:19]} 37. Rg4 {[%emt 0:00:15] White mates.} Rxg4 {[%emt 0:00:07]} 38. Bxg4 {[%emt 0:00:04] KB-KB} Kd7 {[%emt 0:00:05]} 39. Kc3 {[%emt 0:01:40]} Bf7 {[%emt 0:00:51]} 40. Bf3 {[%emt 0:00:47]} Kc7 {[%emt 0:00:10]} 41. Kb4 {[%emt 0:31:01]} Kb6 {[%emt 0:30:18]} 42. a4 {[%emt 0:00:16][%cal Ba3a4,Ba4a5][%mdl 32]} Kc7 {[%emt 0:00:10]} 43. a5 {[%emt 0:00:08]} Kc8 {[%emt 0:00:10]} 44. Kc5 {[%emt 0:00:06]} Kc7 {[%emt 0:00:05] [#]} 45. Bxb7 $1 {[%emt 0:00:49][%mdl 576] Deflection, Promotion} Kxb7 {[%emt 0:00:07]} 46. Kd6 {[%emt 0:00:04] Weighted Error Value: White=0.09 (flawless) /Black=0.65} 1-0

[Event "CZE-ch U16 Open 2023"]
[Site "Teplice"]
[Date "2023.03.17"]
[Round "8.3"]
[White "Janous, Marek"]
[Black "Lang, Simon"]
[Result "1-0"]
[ECO "B51"]
[WhiteElo "2124"]
[BlackElo "1974"]
[Annotator "TA"]
[PlyCount "67"]
[EventDate "2023.03.09"]
[EventType "swiss"]
[EventCountry "CZE"]
[SourceTitle "playchess.com"]
[Source "ChessBase"]
[SourceQuality "1"]
[TimeControl "40/5400+30:1800+30"]

{[%evp 9,67,14,13,0,25,16,23,22,22,17,22,0,13,22,0,-28,-9,-88,-78,-88,-43,-39,-39,-50,-41,-53,-34,-33,0,-4,0,-57,91,114,84,93,128,123,119,129,156,114,141,142,172,131,170,177,638,622,639,628,639,639,629,616,564,533,596,585]} 1. e4 {[%emt 0:00:06]} c5 {[%emt 0:00:39]} 2. Nf3 {[%emt 0:00:31]} d6 {[%emt 0:00:42]} 3. Bb5+ {[%emt 0:01:07]} Nd7 {[%emt 0:01:07]} 4. a4 {[%emt 0:00:15]} Ngf6 {[%emt 0:03:50]} 5. Nc3 {[%emt 0:00:24]} e6 {[%emt 0:03:42]} 6. O-O {[%emt 0:00:24] B51: Sicilian: Moscow Variation (3 Bb5+) without 3...Bd7.} Be7 {[%emt 0:01:52]} (6... a6 $5 {[%cal Ra6b5]} 7. Be2 b6 $14) 7. d4 {[%emt 0:00:37]} cxd4 {[%emt 0:02:04]} 8. Qxd4 {[%emt 0:00:08] White has an edge.} O-O {[%emt 0:02:36]} 9. Rd1 {[%emt 0:01:44]} Qc7 {[%emt 0:08:27]} 10. Bg5 {[%emt 0:04:32]} Rd8 {[%emt 0:08:47]} 11. a5 {[%emt 0:09:18]} h6 {[%emt 0:19:45] [#]} 12. Bxf6 $146 {[%emt 0:06:03]} ({Predecessor:} 12. Bh4 a6 13. Bf1 Rb8 14. Bg3 e5 15. Qe3 b5 16. axb6 Rxb6 17. Ra2 Bb7 18. h3 {½-½ Cladouras,P (2375)-Meissner,H (2255) BL2-Nord 9596 1995 [4]}) 12... Nxf6 {[%emt 0:01:54]} 13. e5 {[%emt 0:14:12]} (13. Qc4 $11 {keeps the balance.} Qxc4 14. Bxc4) 13... dxe5 $17 {[%emt 0:06:16]} 14. Qxe5 {[%emt 0:00:27]} Bd6 {[%emt 0:01:14]} 15. Qe2 {[%emt 0:00:21]} a6 {[%emt 0:08:46]} 16. Bd3 {[%emt 0:01:47]} Bd7 {[%emt 0:08:10]} 17. Ne4 {[%emt 0:02:32] Strongly threatening Nxd6.} Nxe4 {[%emt 0:04:09]} 18. Qxe4 {[%emt 0:00:40]} f5 {[%emt 0:00:49]} 19. Qc4 {[%emt 0:00:37]} Rac8 {[%emt 0:01:53]} 20. Qxc7 {[%emt 0:00:40]} ({Better is} 20. Qb3 $11) 20... Rxc7 {[%emt 0:00:47] [#]} (20... Bxc7 $15 {keeps the upper hand.} 21. Re1 Kf7) 21. Bxf5 $1 $16 {[%emt 0:02:52][%mdl 64] Discovered Attack} Bc8 {[%emt 0:04:59]} 22. Bd3 {[%emt 0:03:20]} e5 {[%emt 0:02:09]} 23. Re1 {[%emt 0:15:00]} Re7 {[%emt 0:01:15]} 24. h3 {[%emt 0:05:31] White is more active.} Rf8 {[%emt 0:02:41]} 25. Nd2 {[%emt 0:08:40][%cal Bf3d2,Bd2c4,Bc4e5,Be5g6,Bg6f4][%mdl 32]} Bc7 {[%emt 0:01:40]} 26. Re2 {[%emt 0:02:17]} Rf4 {[%emt 0:01:00]} 27. Nc4 {[%emt 0:08:28]} Be6 {[%emt 0:02:09]} 28. Nxe5 {[%emt 0:00:58] Hoping for Ng6.} Bd5 $2 {[%emt 0:00:35]} (28... Bf7) 29. Ng6 $1 $18 {[%emt 0:00:56][%csl LRe7,LRf4][%mdl 64] [#] Discovered Attack. White is clearly winning.} Rxe2 {[%emt 0:00:20]} 30. Nxf4 {[%emt 0:00:13]} ({Not} 30. Bxe2 Rf7 31. c3 Be4 $16) 30... Bxf4 {[%emt 0:00:30]} 31. Bxe2 {[%emt 0:00:04]} Be5 {[%emt 0:00:23]} 32. c3 {[%emt 0:01:04]} Kf7 {[%emt 0:00:12]} 33. Bf3 {[%emt 0:00:57]} Bxf3 {[%emt 0:00:11]} 34. gxf3 {[%emt 0:00:05] Weighted Error Value: White=0.16 (very precise) /Black=0.42} 1-0

[Event "CZE-ch U16 Open 2023"]
[Site "Teplice"]
[Date "2023.03.17"]
[Round "8.4"]
[White "Prazak, Daniel"]
[Black "Dolensky, Filip"]
[Result "1-0"]
[ECO "B07"]
[WhiteElo "2064"]
[BlackElo "2108"]
[Annotator "TA"]
[PlyCount "61"]
[EventDate "2023.03.09"]
[EventType "swiss"]
[EventCountry "CZE"]
[SourceTitle "playchess.com"]
[Source "ChessBase"]
[SourceQuality "1"]
[TimeControl "40/5400+30:1800+30"]

{[%evp 9,60,11,29,21,29,24,18,0,71,0,68,57,66,62,127,127,147,156,159,122,591,568,575,537,897,897,878,875,855,858,841,822,783,439,418,284,284,279,285,285,274,269,438,431,751,743,729,695,796,766,29979,850,29983]} 1. e4 {[%emt 0:00:05]} d6 {[%emt 0:00:07]} 2. d4 {[%emt 0:00:25]} Nf6 {[%emt 0:03:49]} 3. Nc3 {[%emt 0:00:12]} Nbd7 {[%emt 0:00:14]} 4. Nf3 {[%emt 0:00:17]} e5 {[%emt 0:00:09]} 5. Rg1 {[%emt 0:03:55]} h6 {[%emt 0:01:12]} 6. g4 {[%emt 0:01:21] C41: Philidor Defence.} c6 {[%emt 0:04:10]} 7. Be3 {[%emt 0:02:27]} Qc7 {[%emt 0:01:08]} 8. Qd2 {[%emt 0:02:36] [#] The position is equal.} a6 $146 {[%emt 0:00:57]} (8... b5 $11) ({Predecessor:} 8... Be7 9. O-O-O Nf8 10. dxe5 dxe5 11. g5 Ng4 12. gxh6 gxh6 13. Nb5 cxb5 14. Bxb5+ Bd7 15. Bxd7+ Nxd7 16. Rxg4 {1-0 Guennigmann,M (2234)-Carrasco,P (2038) Dortmund Sparkassen op-A 2010 (4)}) 9. a4 {[%emt 0:05:32]} (9. O-O-O $16) 9... Be7 {[%emt 0:08:07]} (9... exd4 $11 10. Nxd4 Ne5) 10. g5 $1 $14 {[%emt 0:10:58]} hxg5 {[%emt 0:03:01]} 11. Nxg5 {[%emt 0:01:16]} Rf8 {[%emt 0:09:59]} ({Black should play} 11... Nh7 $14) 12. f4 $16 {[%emt 0:08:38]} b6 {[%emt 0:03:19]} 13. Bc4 {[%emt 0:09:30]} Bb7 {[%emt 0:03:16]} 14. Qg2 {[%emt 0:05:34] Threatens to win with Bxf7+. White has more active pieces. The black rooks are badly placed.} b5 $2 {[%emt 0:11:13][%mdl 8192] This move loses the game for Black.} (14... exd4 $16 {is tougher.} 15. Bxf7+ (15. Bxd4 d5 $15) 15... Rxf7) 15. Bxf7+ $18 {[%emt 0:06:29][%mdl 64] [#] Decoy} Rxf7 {[%emt 0:01:11]} 16. Nxf7 {[%emt 0:00:05]} Kxf7 {[%emt 0:05:39]} 17. Qg6+ {[%emt 0:00:41]} Kf8 {[%emt 0:00:21]} 18. fxe5 {[%emt 0:01:14]} dxe5 {[%emt 0:01:07]} 19. O-O-O {[%emt 0:01:12]} Ne8 {[%emt 0:08:02]} 20. dxe5 {[%emt 0:11:31]} Nxe5 {[%emt 0:02:27]} 21. Rdf1+ {[%emt 0:05:17]} Bf6 {[%emt 0:04:16] [#]} 22. Rxf6+ {[%emt 0:00:47][%mdl 512]} Kg8 {[%emt 0:12:46]} (22... Nxf6 $2 23. Bc5+ Kg8 24. Qxf6 $18) 23. Qf5 {[%emt 0:00:47][%csl Gf5][%cal Rf6f8]} Nxf6 {[%emt 0:00:29]} 24. Qxf6 {[%emt 0:00:07] Black is weak on the dark squares} Re8 {[%emt 0:03:12]} 25. Bd4 {[%emt 0:04:33]} b4 $2 {[%emt 0:00:45]} (25... Re7 26. b4 (26. Bc5 Rf7 $16) 26... Bc8 27. Rxg7+ (27. Bc5 Rf7 $14) 27... Rxg7) 26. Rg5 $1 {[%emt 0:01:03][%cal Rd4e5]} bxc3 {[%emt 0:01:21]} (26... Qf7 $142 27. Bxe5 Qxf6 28. Bxf6 Kf7) 27. Bxe5 {[%emt 0:00:21]} Rxe5 {[%emt 0:00:50]} 28. Qxe5 {[%emt 0:00:07]} Qf7 {[%emt 0:00:31][%cal Rf7f1] Prevents Qe8+} 29. Rf5 {[%emt 0:00:52] Prevents Qf1+. Intending Qb8+ and mate.} Qg6 {[%emt 0:00:13]} 30. bxc3 {[%emt 0:00:32]} (30. Qb8+ $142 Kh7 31. bxc3 (31. Qxb7 $2 {leads to mate.} Qg1+) 31... Qe6 32. Qxb7 Kg6 33. Rc5 Kh7 34. Kb2 a5 35. Rxa5) 30... Qg1+ {[%emt 0:00:19]} 31. Kb2 {[%emt 0:00:18] Artfully played by Prazak.   Weighted Error Value: White=0.43/Black=1.27} 1-0

[Event "CZE-ch U16 Open 2023"]
[Site "Teplice"]
[Date "2023.03.17"]
[Round "8.5"]
[White "Werner, Hong Quan Dan"]
[Black "Seidl, Jan"]
[Result "0-1"]
[ECO "B11"]
[WhiteElo "2085"]
[BlackElo "2025"]
[Annotator "TA"]
[PlyCount "64"]
[EventDate "2023.03.09"]
[EventType "swiss"]
[EventCountry "CZE"]
[SourceTitle "playchess.com"]
[Source "ChessBase"]
[SourceQuality "1"]
[TimeControl "40/5400+30:1800+30"]

{[%evp 10,64,31,25,19,25,12,12,8,12,9,12,11,12,43,14,0,0,0,-9,-8,-17,47,-8,4,-35,-25,-28,-23,-43,-20,-9,0,-277,-297,-1506,-1450,-1381,-1365,-1742,-919,-1708,-1715,-1675,-1272,-1614,-1559,-2340,-2339,-29995,-29996,-29996,-29997,-29997,-29998,-29998,-29999]} 1. e4 {[%emt 0:00:09]} c6 {[%emt 0:00:05]} 2. Nc3 {[%emt 0:00:23]} d5 {[%emt 0:00:06]} 3. Nf3 {[%emt 0:00:06]} Bg4 {[%emt 0:00:14]} 4. h3 {[%emt 0:00:32]} Bxf3 {[%emt 0:00:08]} 5. Qxf3 {[%emt 0:00:18]} e6 {[%emt 0:00:08]} 6. Be2 {[%emt 0:00:19]} Nf6 {[%emt 0:00:15] B11: Caro-Kann: Two Knights Variation.} 7. O-O {[%emt 0:03:48]} Be7 {[%emt 0:01:47]} 8. Rd1 {[%emt 0:02:58]} d4 {[%emt 0:02:01] The position is equal.} 9. Nb1 {[%emt 0:00:22]} O-O {[%emt 0:01:41]} 10. d3 {[%emt 0:01:05]} c5 {[%emt 0:01:14]} 11. Qg3 {[%emt 0:00:45]} Nc6 {[%emt 0:02:12] [#]} 12. f4 $146 {[%emt 0:02:06]} (12. e5 $5 {[%cal Re5f6]} Ne8 13. Bf3 $14) ({Predecessor:} 12. e5 Ne8 13. c4 f6 14. exf6 Bd6 15. Bf4 Bxf4 16. Qxf4 gxf6 17. Nd2 e5 18. Qh4 {0-1 Tomczak,J (2584)-Socko,B (2636) POL-ch Lotto 79th 2022 (2.2)}) 12... Qc7 {[%emt 0:04:22]} 13. Qf2 {[%emt 0:04:54]} Nd7 {[%emt 0:01:29]} 14. a4 {[%emt 0:10:22]} a6 {[%emt 0:02:09]} 15. Na3 {[%emt 0:00:23]} f5 {[%emt 0:00:17]} (15... e5 $11) 16. e5 {[%emt 0:11:43]} (16. exf5 $14 exf5 17. Bd2) 16... Kh8 {[%emt 0:00:45]} (16... Nb6 $5 {[%cal Rb6a4]}) 17. Bd2 {[%emt 0:02:52] [#]} g5 $1 {[%emt 0:03:14]} 18. g3 {[%emt 0:00:07]} (18. fxg5 Ndxe5) 18... Rg8 {[%emt 0:01:08] And now ...gxf4 would win.} 19. Kh1 {[%emt 0:01:30]} gxf4 {[%emt 0:06:35]} 20. gxf4 {[%emt 0:00:05]} Nf8 {[%emt 0:02:33]} 21. Qh2 $2 {[%emt 0:07:04][%mdl 8192]} (21. Nc4 $11 {and White has nothing to worry.}) 21... Nxe5 $1 $19 {[%emt 0:02:49][%mdl 64] Clearance} 22. Qf2 $2 {[%emt 0:00:41]} (22. Rg1 Qc6+ 23. Rg2) 22... Qc6+ {[%emt 0:01:43]} 23. Kh2 {[%emt 0:01:23] [#]} Bh4 $1 {[%emt 0:00:16][%cal Be7h4,Bh4g3,Bg3f4][%mdl 608] Deflection} 24. Qf1 {[%emt 0:00:19]} (24. Rg1 Bxf2) 24... Bg3+ {[%emt 0:00:56]} 25. Kg1 {[%emt 0:00:03]} Bxf4+ {[%emt 0:00:34]} 26. Kf2 {[%emt 0:00:06]} Bg3+ {[%emt 0:06:52]} 27. Kg1 {[%emt 0:00:05]} f4 {[%emt 0:07:08]} 28. Nc4 {[%emt 0:00:34]} f3 {[%emt 0:02:19] ( -> ...f2+)} 29. Nxe5 {[%emt 0:00:40]} f2+ {[%emt 0:01:13] Black mates.} 30. Qxf2 {[%emt 0:02:04]} Bxf2+ {[%emt 0:00:14]} 31. Kxf2 {[%emt 0:03:18]} Qg2+ {[%emt 0:00:13]} 32. Ke1 {[%emt 0:03:02]} Qg3+ {[%emt 0:00:07] Ingenious play by Seidl!   Weighted Error Value: White=1.34/Black=0.11 (very precise)} 0-1

[Event "CZE-ch U16 Open 2023"]
[Site "Teplice"]
[Date "2023.03.17"]
[Round "8.6"]
[White "Tillmann, Stanislav"]
[Black "Hladky, Tadeas"]
[Result "1/2-1/2"]
[ECO "A01"]
[WhiteElo "1907"]
[BlackElo "1973"]
[Annotator "TA"]
[PlyCount "61"]
[EventDate "2023.03.09"]
[EventType "swiss"]
[EventCountry "CZE"]
[SourceTitle "playchess.com"]
[Source "ChessBase"]
[SourceQuality "1"]
[TimeControl "40/5400+30:1800+30"]

{[%evp 16,61,0,-2,-7,-7,-4,-6,0,0,0,-7,122,124,123,131,117,79,66,-5,-4,-94,-94,-94,-94,-94,-88,-85,-98,-83,-46,-79,-68,-63,-67,-67,-67,-69,-31,-33,-33,-71,-52,-47,0,0,0,0]} 1. b3 {[%emt 0:00:01]} d5 {[%emt 0:00:16]} 2. Bb2 {[%emt 0:00:54]} Nf6 {[%emt 0:00:12]} 3. e3 {[%emt 0:01:41]} Bf5 {[%emt 0:00:31]} 4. Nf3 {[%emt 0:00:46]} e6 {[%emt 0:00:14]} 5. Be2 {[%emt 0:00:16]} Bd6 {[%emt 0:00:14]} 6. O-O {[%emt 0:00:27]} O-O {[%emt 0:00:22]} 7. c4 {[%emt 0:00:20]} c6 {[%emt 0:00:05]} 8. d4 {[%emt 0:01:20]} h6 {[%emt 0:00:41]} 9. Nbd2 {[%emt 0:00:30]} a5 {[%emt 0:00:22] D12: Slav Defence: 3 Nf3 Nf6 4 e3 Bf5.} 10. a3 {[%emt 0:00:44]} Nbd7 {[%emt 0:01:21]} 11. Ne5 {[%emt 0:02:21]} Qc7 {[%emt 0:07:19][%cal Rd7e5]} 12. f4 {[%emt 0:05:56][%cal Bf2f4,Bf4e5][%mdl 32]} Ne4 {[%emt 0:02:33] [#]} 13. Rc1 $146 {[%emt 0:05:17]} ({Predecessor:} 13. Nd3 Nxd2 14. Qxd2 Nf6 15. c5 Be7 16. Bf3 Be4 17. Bc3 b5 18. Ne5 Ne8 19. Bxe4 dxe4 {1-0 Kireev,S-Klitchev,M Moscow-ch op 1995 (9)}) 13... Nxe5 {[%emt 0:03:31]} (13... Ndf6 $11 {remains equal.}) 14. fxe5 $16 {[%emt 0:02:00] [#] aiming for cxd5.} Be7 {[%emt 0:00:29]} 15. cxd5 {[%emt 0:00:30] Hoping for Nxe4.} Bg5 {[%emt 0:02:52]} 16. Nxe4 {[%emt 0:26:27]} Bxe4 {[%emt 0:01:07]} 17. Rc3 {[%emt 0:06:35]} (17. d6 $1 $14 Bxe3+ 18. Kh1) 17... exd5 $11 {[%emt 0:01:45]} 18. Bc1 {[%emt 0:03:10]} (18. Bf3 $11) 18... f6 $17 {[%emt 0:05:59]} 19. exf6 {[%emt 0:00:39]} Rxf6 {[%emt 0:00:10]} 20. Rxf6 {[%emt 0:01:09]} Bxf6 {[%emt 0:00:05]} ({Much worse is} 20... gxf6 $6 21. Bd3 $15) 21. Bd3 {[%emt 0:01:47]} Bxd3 {[%emt 0:01:25]} 22. Qxd3 {[%emt 0:01:15]} Qd6 {[%emt 0:13:15]} 23. Qg6 {[%emt 0:06:36]} Rf8 {[%emt 0:05:02]} 24. Rd3 {[%emt 0:03:03]} Qe7 {[%emt 0:02:48]} 25. Rd1 $1 {[%emt 0:01:19]} Bg5 {[%emt 0:07:32]} 26. Re1 {[%emt 0:00:48]} Bh4 {[%emt 0:07:18]} 27. g3 {[%emt 0:03:18]} Bg5 {[%emt 0:04:32]} 28. Qd3 {[%emt 0:02:13]} Qf6 {[%emt 0:08:40] [#] ( -> ...Qf2+)} 29. Rf1 {[%emt 0:01:21] Against Qf2+} Qxf1+ {[%emt 0:00:14]} (29... Qe6 $15) 30. Qxf1 $11 {[%emt 0:00:06]} Rxf1+ {[%emt 0:00:06]} 31. Kxf1 {[%emt 0:00:05] Weighted Error Value: White=0.20 (precise) /Black=0.18 (very precise)} 1/2-1/2